Cogmind - Beta 16 @@@ ROGUE MODE // 2025.11.18 @ 18:31:13 Player: guru-sr Result: Destroyed by Piercing Trap Performance ------------- Evolutions (0) 0 Regions Visited (2) 400 Robots Destroyed (35) 175 Value Destroyed (661) 661 Prototype IDs (12) 240 Alien Tech Used (0) 0 Bonus (0) 0 TOTAL SCORE: 1476 Bonus ------- None Cogmind --------- Core Integrity 0/250 Matter 228/300 Energy 199/200 System Corruption 2% Temperature Cool (0) Movement Rolling (120) Ox1 Location -10/Subcaves Parts ------- > --- POWER (1) -------- Subdweller Power Source > --- PROPULSION (2) --- Subdweller Monowheel > --- UTILITY (2) ------ Large Storage Unit Light Armor Plating > --- WEAPON (2) ------- Battle Rifle > --- INVENTORY (15) --- Subdweller Monowheel High-capacity Matter Pod (200) Subdweller Optics Improved Terrain Scanner Utility Shielding Light Armor Plating Light Armor Plating Light Armor Plating Shield Generator Hacking Suite Rainbow Chip Subdweller Machine Gun Grenade Launcher Mining Laser Multitool Peak State ------------ > --- POWER ------------ Subdweller Power Source > --- PROPULSION ------- Light Treads Subdweller Monowheel > --- UTILITY ---------- Large Storage Unit Light Armor Plating > --- WEAPON ----------- Beam Cannon Subdweller Machine Gun > --- INVENTORY -------- High-capacity Matter Pod Improved Terrain Scanner Utility Shielding Light Armor Plating Light Armor Plating Light Armor Plating Shield Generator Hacking Suite Rainbow Chip Grenade Launcher Mining Laser Multitool [Rating: 13] Favorites ----------- Power Ion Engine Engine Ion Engine Propulsion Light Treads Treads Light Treads Wheel Subdweller Monowheel Utility Large Storage Unit Device Improved Terrain Scanner Storage Large Storage Unit Protection Light Armor Plating Weapon Beam Cannon Energy Gun Small Laser Energy Cannon Beam Cannon Ballistic Gun Assault Rifle Launcher Grenade Launcher Special Weapon Mining Laser Build | -11 -10 -10 ------- Run | Yrd Mat Sub Slots Evolved . | . . . Power . | . . . Propulsion . | . . . Utility . | . . . Weapon . | . . . Parts Attached 31 | 7 17 7 Power 4 | 1 1 2 Engine 4 | 1 1 2 Core . | . . . Reactor . | . . . Propulsion 5 | 2 2 1 Treads 4 | 2 2 . Leg . | . . . Wheel 1 | . . 1 Hover . | . . . Flight . | . . . Utility 11 | 2 8 1 Device 3 | 1 2 . Storage 6 | 1 5 . Processor . | . . . Hackware . | . . . Protection 2 | . 1 1 Artifact . | . . . Weapon 11 | 2 6 3 Energy Gun 2 | 1 1 . Energy Cannon 2 | . 2 . Ballistic Gun 5 | 1 1 3 Ballistic Cannon . | . . . Launcher 1 | . 1 . Special Weapon 1 | . 1 . Impact Weapon . | . . . Slashing Weapon . | . . . Piercing Weapon . | . . . Special Melee Weapon . | . . . Unidentified Prototypes . | . . . Parts Lost 10 | . 1 9 Power 2 | . . 2 Propulsion 3 | . . 3 Utility 2 | . 1 1 Weapon 3 | . . 3 Highest Loss Streak 5 | . 1 5 To Critical Strikes 1 | . . 1 Average Backups 13 | 2 12 14 Power . | . . . Propulsion 1 | . 1 1 Utility 8 | . 6 9 Weapon 3 | . 3 2 Tool/Special . | . . . Unused Backups 17 | . 3 14 Power 1 | . 1 . Propulsion 3 | . 1 2 Utility 10 | . . 10 Weapon 2 | . 1 1 Tool/Special 1 | . . 1 Average Slot Usage (%) 96 | . 94 97 Engine 13 | . 14 13 Treads 25 | . 28 24 Wheel 1 | . . 2 Storage 15 | . 19 14 Protection 9 | . 1 13 Energy Gun 1 | . 4 . Energy Cannon 11 | . 8 12 Ballistic Gun 13 | . 13 13 Peak Build Rating 13 | 9 10 13 Average Rating 9 | 6 8 10 On Entrance 6 | . 9 9 Avg Prop Armor Cover (%) 10 | . . 10 Naked Turns . | . . . Heaviest Build 35 | 12 34 35 Greatest Support 40 | 40 40 40 Greatest Overweight (x) 1 | . . 1 Average Overweight (x) . | . . . Largest Inventory Capacity 15 | 8 15 15 Average Capacity 14 | 7 13 15 Most Carried 15 | 6 15 15 Average Carried 13 | 2 12 14 Final Capacity 15 | 8 15 15 Final Carried 15 | 6 15 15 Class Distribution -------------------- 98% | Mutant Dominant Class ---------------- Mutant | -10/Materials Mutant | -10/Subcaves Resources | -11 -10 -10 ----------- Run | Yrd Mat Sub Matter Collected 1288 | 291 528 469 Remotely . | . . . Salvage Created 946 | 141 451 354 Parts 69 | 11 36 22 Haulers Intercepted 2 | . 2 . Recyclers Shooed . | . . . Parts Field Recycled . | . . . Retrieved Matter . | . . . Parts Self-Destructed 6 | . . 6 Prevented . | . . . Parts Restored . | . . . Kills | -11 -10 -10 ------- Run | Yrd Mat Sub Combat Hostiles Destroyed 22 | . 13 9 Guns 6 | . 3 3 Cannons 4 | . . 4 AOE 12 | . 10 2 Classes Destroyed 11 | 2 7 2 Worker 1 | . 1 . Builder 1 | . 1 . Tunneler 3 | 3 . . Hauler 2 | . 2 . Recycler 2 | 1 1 . Operator 2 | . 2 . Watcher 2 | . 2 . Swarmer 9 | . 9 . Grunt 4 | . 4 . Artisan 1 | . . 1 Subdweller 9 | . . 9 Best Kill Streak 9 | 4 9 3 Combat Bots Only 8 | . 8 3 Max Kills in Single Turn 4 | 1 4 1 Gunslinging . | . . . Exploded 3 | . 3 1 Melee . | . . . Uniques/NPCs Destroyed . | . . . Combat | -11 -10 -10 -------- Run | Yrd Mat Sub Hostile Shots Fired 106 | . 37 69 Missed 35 | . 14 21 Hits 71 | . 23 48 Projectile 71 | . 23 48 Critical Strikes 5 | . 1 4 Damage Taken 1467 | . 249 1218 Core 256 | . 43 213 Absorbed by Shields . | . . . Core Remaining (%) 100 | 100 . . Volleys Fired 102 | 7 48 47 Largest 2 | 2 2 2 Hottest 100 | 60 100 100 Shots Fired 161 | 14 74 73 Gun 73 | 14 31 28 Cannon 59 | . 27 32 Launcher 8 | . 5 3 Special 21 | . 11 10 Kinetic 56 | 7 21 28 Thermal 97 | 7 48 42 Explosive 8 | . 5 3 Electromagnetic . | . . . Robot Hit Streak 44 | 4 9 44 Robot Miss Streak 5 | 3 5 1 Penetration Max . | . . . Secondary Targets . | . . . Shots Hit Robots 97 | 7 36 54 Core Hits 48 | 4 27 17 Critical Kills 1 | . 1 . Critical Parts Destroyed . | . . . Critical Strikes 1 | . 1 . Meltdown 1 | . 1 . Melee Attacks . | . . . Impact . | . . . Slashing . | . . . Piercing . | . . . Sneak Attacks . | . . . Combat Hostiles . | . . . Follow-up Attacks . | . . . Damage Inflicted 2403 | 89 1167 1147 Guns 791 | 89 226 476 Cannons 860 | . 368 492 Explosions 752 | . 573 179 Melee . | . . . Ramming . | . . . Kinetic 649 | 27 146 476 Thermal 1002 | 62 448 492 Explosive 752 | . 573 179 Electromagnetic . | . . . Impact . | . . . Slashing . | . . . Piercing . | . . . Highest Corruption 2 | . 2 2 Average Corruption 2 | . 2 2 Corruption Purged . | . . . Corruption Blocked . | . . . Effects 42 | . 6 36 Message Errors 9 | . 2 7 Matter Fused 14 | . 1 13 Heat Flow Errors 3 | . 1 2 Energy Discharges 6 | . . 6 Parts Rejected 1 | . 1 . Data Loss (minor) 3 | . . 3 Data Loss (major) 3 | . . 3 Misfires 2 | . . 2 Alerts 1 | . 1 . Overload Shots . | . . . Overflow Damage . | . . . Projectiles . | . . . Explosions . | . . . Melee . | . . . Knockbacks . | . . . Impact . | . . . Kinetic . | . . . Secondary . | . . . Self-Inflicted Damage 102 | . 41 61 Shots 4 | . 2 2 Rammed . | . . . Targets Rammed . | . . . Kicked . | . . . Crushed . | . . . Highest Temperature 230 | . 176 230 Average Temperature 36 | . 32 76 Received Heat Transfer 126 | . 42 84 Siege Activations . | . . . Martial Activations . | . . . Shielding Activations . | . . . Robots Disrupted . | . . . Combat Hostiles . | . . . Robots Corrupted . | . . . Combat Hostiles . | . . . Parts Fried . | . . . Impact Corruptions . | . . . Robots Melted 1 | . 1 . Combat Hostiles . | . . . Parts Melted 4 | . 3 1 Heat Transferred 2138 | 150 952 1036 Parts Sabotaged . | . . . Parts Stolen . | . . . Parts Stripped . | . . . Power Chain Reactions . | . . . Alert | -11 -10 -10 ------- Run | Yrd Mat Sub Maximum Alert Level 1 | . 1 . Low Security (%) 93 | 100 93 . Level 1 6 | . 6 . Level 2 . | . . . Level 3 . | . . . Level 4 . | . . . Level 5 . | . . . High Security . | . . . Max Security . | . . . Peak Influence 231 | 10 231 . Initial . | . . . Average 56 | 1 60 . Influence Increases 498 | 20 478 . Destroy 0b10 Robot/C 260 | . 260 . Destroy 0b10 Robot/NC 55 | 20 35 . Destroy Leader 48 | . 48 . Successful Hack 29 | . 29 . Select Force Hacks 60 | . 60 . Destroy Structure 46 | . 46 . Influence Decreases 498 | 20 474 4 Entered New Map 3 | . . 3 Time Decay 485 | 20 464 1 Lost Part 10 | . 10 . Squads Dispatched 2 | . 2 . Investigation 2 | . 2 . Extermination . | . . . Reinforcement . | . . . Assault . | . . . Garrison . | . . . Intercept . | . . . Searches Triggered . | . . . Construction Impeded . | . . . Haulers Reinforced . | . . . Active Scanning Responses . | . . . Cargo Convoy Interrupts . | . . . Stealth | -11 -10 -10 --------- Run | Yrd Mat Sub Distress Signals . | . . . Communications Jammed . | . . . Distress Signals . | . . . Times Spotted 31 | . 22 9 Peak Tracking Total 9 | . 9 2 Tactical Retreats . | . . . Traps | -11 -10 -10 ------- Run | Yrd Mat Sub Traps Triggered 4 | . 1 3 Indirectly . | . . . Trap Hack Attempts . | . . . Triggered . | . . . Disarmed . | . . . Reprogrammed . | . . . Reused . | . . . Traps Extracted . | . . . Installed . | . . . Triggered . | . . . Machines | -11 -10 -10 ---------- Run | Yrd Mat Sub Machines Disabled 2 | . . 2 Max in Single Turn 1 | . . 1 Machines Repaired . | . . . Machines Dismantled . | . . . Machines Sabotaged . | . . . Overloaded Fab Kills . | . . . Hacking | -11 -10 -10 --------- Run | Yrd Mat Sub Machines Accessed 12 | . 10 2 Terminals 8 | . 8 . Fabricators . | . . . Repair Stations . | . . . Recycling Units 2 | . 2 . Scanalyzers . | . . . Garrison Access . | . . . Total Hacks 39 | . 27 12 Successful 26 | . 14 12 Failed 12 | . 12 . Catastrophic 1 | . 1 . Database Lockouts 1 | . 1 . Manual 24 | . 24 . Terminals 23 | . 23 . Fabricators . | . . . Repair Stations . | . . . Recycling Units 4 | . 4 . Scanalyzers . | . . . Garrison Access . | . . . Terminal Hacks 15 | . 3 12 Record 11 | . . 11 Robot Analysis 1 | . 1 . Terminal Index 1 | . 1 . Locate Traps 1 | . 1 . Proto ID Catalog 1 | . . 1 Fabricator Hacks . | . . . Repair Station Hacks . | . . . Recycling Unit Hacks 2 | . 2 . Report Inventory 2 | . 2 . Scanalyzer . | . . . Garrison Access Hacks . | . . . Unauthorized Hacks 9 | . 9 . Terminals 7 | . 7 . Assimilate 2 | . 2 . Botnet 1 | . 1 . Operators 1 | . 1 . Skim 3 | . 3 . Fabricators . | . . . Repair Stations . | . . . Recycling Units 2 | . 2 . Tunnel 2 | . 2 . Scanalyzers . | . . . Garrison Access . | . . . Data Cores Recovered . | . . . Used . | . . . Hacking Detections 6 | . 6 . Full Trace Events . | . . . Feedback Events . | . . . Feedback Blocked . | . . . Robot Schematics Acquired . | . . . Robots Built . | . . . Authchips . | . . . Time . | . . . Total Robot Build Rating . | . . . Part Schematics Acquired . | . . . Parts Built . | . . . Authchips . | . . . Time . | . . . Total Part Build Rating . | . . . Part Studies Acquired . | . . . Parts Repaired . | . . . Time . | . . . Parts Recycled . | . . . Recycled Matter . | . . . Retrieved Matter . | . . . Retrieved Components . | . . . Parts Scanalyzed . | . . . Part Schematics Acquired . | . . . Parts Damaged . | . . . Bothacking | -11 -10 -10 ------------ Run | Yrd Mat Sub Used RIF Installer . | . . . Robots Hacked . | . . . Non-combat . | . . . Combat . | . . . Robot Hacks Applied . | . . . Relay Couplers Released . | . . . Fabnet Peak Effective % . | . . . Robots Rewired . | . . . Allies Hacked . | . . . Hacks Repelled . | . . . Allies | -11 -10 -10 -------- Run | Yrd Mat Sub Total Allies 2 | . 2 . Largest Group 1 | . 1 . Highest-Rated Group 10 | . 10 . Highest-Rated Ally 10 | . 10 . Total Orders 2 | . 2 . STAY 2 | . 2 . Ally Attacks . | . . . Total Damage . | . . . Kills . | . . . Allies Corrupted . | . . . Allies Melted . | . . . Intel | -11 -10 -10 ------- Run | Yrd Mat Sub Active Infowar (turns) 271 | 30 241 . Terrain 271 | 30 241 . Robot Analysis Total 1 | . 1 . Derelict Logs Recovered 2 | . . 2 Drone Launches . | . . . Drone Recoveries . | . . . Exploration | -11 -10 -10 ------------- Run | Yrd Mat Sub Turns Passed 4354 | 120 1595 2639 Spaces Moved 2467 | 51 831 1585 Core 4 | 4 . . Treads 2102 | 47 831 1224 Legs . | . . . Wheels 361 | . . 361 Hover . | . . . Flight . | . . . Fastest Speed 50 | 50 160 120 Average Speed 154 | 151 160 151 Slowest Speed 240 | 160 160 240 Overloaded Moves . | . . . Propulsion Burnouts . | . . . Robots Hopped . | . . . Potential Cave-ins . | . . . Cave-ins Triggered . | . . . Exploration Rate (%) 59 | 3 100 74 Regions Visited 2 Branch Regions 1 Pre-discovered Areas 3 | . 2 1 Known Exits Taken . | . . . Unknown Exits Taken 2 | 1 1 . Scrap Searched 2 | . . 2 Spaces Dug 26 | . 26 . Terrain Destroyed 59 | . 48 11 Melee . | . . . Projectile 11 | . 10 1 AOE 48 | . 38 10 Terrain Rammed . | . . . Walls Destroyed . | . . . Machines Disabled . | . . . Actions | -11 -10 -10 --------- Run | Yrd Mat Sub Total 2801 | 77 995 1729 Wait 118 | 6 53 59 Move 2465 | 50 830 1585 Hop . | . . . Pick Up 31 | 7 17 7 Fast Attach 17 | 6 6 5 Attach 6 | 1 1 4 Detach 2 | . 1 1 Swap 39 | . 24 15 Drop 21 | . 15 6 Fire 102 | 7 48 47 Melee . | . . . Ram . | . . . Kick . | . . . Crush . | . . . Escape Stasis . | . . . Rewire . | . . . Trap . | . . . Miscellaneous . | . . . Route ------- -11/Scrapyard -10/Materials (discovered 5 exits: [*Mat x3] / [*Min] / *Sub) -10/Subcaves (discovered 2 exits: *Mat x2) History --------- Turn | Location | Event 21 | -11/Scrapyard | Discovered new exit (range 16) 121 | -11/Scrapyard | Entered Materials 285 | -10/Materials | Discovered new exit (range 14) 304 | -10/Materials | Build established: Mutant 335 | -10/Materials | Destroyed 8 combat bots 380 | -10/Materials | Central database locked down 553 | -10/Materials | Discovered new exit (range 16) 745 | -10/Materials | Discovered new exit (range 16) 1262 | -10/Materials | Discovered new exit (range 10) 1709 | -10/Materials | Discovered new exit (range 3) 1716 | -10/Materials | Entered Subcaves 1825 | -10/Subcaves | Shifting Twisted Machinery released Piercing Trap 1901 | -10/Subcaves | Shifting Twisted Machinery released Riot Gun 1925 | -10/Subcaves | Shifting Twisted Machinery released Mak. Flight Unit 2533 | -10/Subcaves | Learned Materials garrison access intel 2596 | -10/Subcaves | Visited 4L-MR0's lab 2620 | -10/Subcaves | Found Rainbow Chip 3164 | -10/Subcaves | Discovered new exit (range 9) 3256 | -10/Subcaves | Learned location of Zion (-6) 3256 | -10/Subcaves | Met a Zionite searching for "candidates" 3363 | -10/Subcaves | Identified exit to Materials 3446 | -10/Subcaves | Visited Clippyterm 3451 | -10/Subcaves | Learned 40 Factory zone layouts 3799 | -10/Subcaves | Core integrity fell below 50% 3842 | -10/Subcaves | Lost 5 parts (1p2n1u1w) 4178 | -10/Subcaves | Core integrity fell below 20% 4226 | -10/Subcaves | Lost 3 parts (1p1n1w) 4355 | -10/Subcaves | Destroyed by Piercing Trap Last Messages --------------- 04024_ L#RK#GNIU8,%WINI6OPDBR%RAZ>OSI 04041_ System corrupted: Component data lost. 04081_ System corrupted: Matter fused (-5). 04172_ BZ-3R7(R) affixes Scrap Shield Fragment to Scrap Shield. 04173_ Lgt. Treads destroyed. 04177_ Beam Cannon destroyed. 04181_ BZ-3R7(R) destroyed. 04184_ 50-H4Z(R) destroyed. 04195_ Sub. Power Source destroyed. 04196_ L7-1SF(R) destroyed. 04198_ Acquired 6 matter. 04199_ Acquired 40 matter. 04208_ Acquired Sub. Power Source. 04210_ Acquired 24 matter. 04216_ The unstable cave ceiling collapses. 04235_ System corrupted: Matter fused (-10). 04270_ System corrupted: Matter fused (-8). 04355_ Triggered Piercing Trap. 04355_ Spikes shoot up from the floor. 04355_ Critical hit (Impale). Map ----- +----------------------------------------------------+ | ???????## ##??## ####???????????????????????? | | ????????## ##### #???????????????????????? | | ?????????## ## #???????????????????????? | | ??????????## ^##???????????????????????? | | ???????????# ### ###????????????????????????? | | ???????????####?# ######????????????????????????? | | ??????????## #?## ### ##???????????????????????? | | ??????????# #?# #???????????????????????? | | ??????????# #?# #???????????????????????? | | ??????????# ### ## #???????????????????????? | | ??????????## ^### #??????????????????????? | | ??????????## ##?# #??????????????????????? | | ??????????# #??## ###??????????????????????? | | ?????????## ^ ##???###????????????????????????? | | ?????????# ###????###??####???????????????? | | ?????????## ##### #?## ##??????????????? | | ??????????# ^ #?# ##?????????????? | | ??????????# #??# #?????????????? | | ??????????# #########?# #?????????????? | | ??????????# ####### #?## #?????????????? | | ???????#### ## ## #### #?????????????? | | ?????###"## ### ## #?????????????? | | ????##"" ##?#### ##????????????? | | ????# " ##?????## #### #????????????? | | ????# " ##???????# ##?# #????????????? | | ????# """ "####????????##@ ## ##????????????? | | ????## "###????????????# ### ##?????????????? | | ?????#####????????####### #####??????########? | | ??????????????????# ##????????# ## | | ??????????????????## ### ###??????## # | | ???????????????###### #?## ###????## # ## | | ???????????????# ### #??# ##??## # # | | ???????????????# #?## #??## #### # # | | ???????????????# ##?# ##???### ## # # | | ???????????????# ### #?????# ### # | | ?????????????#### "## ##?????# ## #?# # | | ?????????????#"## ## #?????####### ### # | | ????????????##"## "### ##???????????## ## | | ????????????# ## ## ##?######?????# ### | | ????????????# " "" ## ### # ##????####?## | | ????????????# "" ###????????### | | ????????????## """ ##?????????## | | ?????????????# " "" # # # #???####?### | | ?????????????#" ###" ######## #???# ### | | ?????????????## ####### #??????# #??## | | ??????????????#"" ###### #?????## #### | | ??????????????##" ## #?????# | | ???????????????#" ## ##?????## ## | | ???????????????## ### ##???????## ## ###? | | ????????????????#" ##?####?????????#### ######??? | +----------------------------------------------------+ Best States ------------- Heat Dissipation 35 Energy Generation 15 Energy Capacity 250 Matter Stores 300 Matter Capacity 500 Sight Range 16 Terrain Scan Range 16 Terrain Scan Density 10 Armor Coverage 150 Evasion (%) 40 Recoil Reduction 2 Item Schematics ----------------- None Robot Schematics ------------------ None Fabricated ------------ Nothing Repaired ---------- Nothing Studied --------- None Alien Tech Used ----------------- None Achievements -------------- None Challenges ------------ None Game ------ Seed WeaponsChainSteel Manual? 0 Play Time 00:46:56 Cumulative 39.0 hours Start 2025.11.18 @ 17:41:10 End 2025.11.18 @ 18:31:13 Sessions 1 Manual Loads 0 Difficulty Rogue Special Mode None Game No. 21 Rogue 21 Adventurer 0 Explorer 0 Win Type - Total 1 Types 1/0/0/0/0/0/0/0/0/0 Lore% 21 Gallery% 26 Achievement% 33 Wizard Run 0 Options --------- Layout 0 ASCII 0 Keyboard 0 Movement Mouse Keybinds 0 Fullscreen 1 Font 18/SmallcapsGlow Map View 76x50 Zoom Use 0% Tactical HUD 1 Map Filters NONE Filters NONE Steam 1 RUN: 3b042505-6b38-4ddf-93dc-407ea4faad2b